fUSD/lending_fUSD_20260601
["ID","MTS","AMOUNT","RATE_DAILY","PERIOD"]
[423647667,1780272664000,-1836.785998,0.00039023,30]
[423647655,1780272664000,-151.0,0.00039023,30]
[423647665,1780272664000,-1334.460671,0.00039023,30]
[423647661,1780272664000,-1836.785998,0.00039023,30]
[423647664,1780272664000,-280.876872,0.00039023,30]
[423647662,1780272664000,-151.0,0.00039023,30]
[423647658,1780272664000,-1836.785998,0.00039023,30]
[423647663,1780272664000,-151.0,0.00039023,30]
[423647660,1780272664000,-1334.460671,0.00039023,30]
[423647668,1780272664000,-1334.460671,0.00039023,30]
[423647671,1780272664000,-1334.460671,0.00039023,30]
[423647670,1780272664000,-1836.785998,0.00039023,30]
[423647680,1780272664000,-151.0,0.00039023,30]
[423647659,1780272664000,-151.0,0.00039023,30]
[423647681,1780272664000,-219.698004,0.00039023,30]
[423647669,1780272664000,-288.517632,0.00039023,30]
[423647694,1780272664000,-163.440292,0.00039023,30]
[423647683,1780272664000,-151.0,0.00039023,30]
[423647674,1780272664000,-1836.785998,0.00039023,30]
[423647675,1780272664000,-1836.785998,0.00039023,30]
[423647684,1780272664000,-151.0,0.00039023,30]
[423647676,1780272664000,-1836.785998,0.00039023,30]
[423647672,1780272664000,-1334.460671,0.00039023,30]
[423647677,1780272664000,-219.698004,0.00039023,30]
[423647679,1780272664000,-151.0,0.00039023,30]
[423647685,1780272664000,-219.698004,0.00039023,30]
[423647673,1780272664000,-1836.785998,0.00039023,30]
[423647678,1780272664000,-219.698004,0.00039023,30]
[423647757,1780272665000,-158.385825,0.00039023,30]
[423647747,1780272665000,-199.566695,0.00039023,15]
[423647750,1780272665000,-151.0,0.00039023,30]
[423647752,1780272665000,-3051.214858,0.00039023,30]
[423647751,1780272665000,-151.0,0.00039023,30]
[423647754,1780272665000,-208.33154,0.00039023,30]
[423647758,1780272665000,-208.33154,0.00039023,30]
[423647748,1780272665000,-151.0,0.00039023,30]
[423647755,1780272665000,-3051.214858,0.00039023,30]
[423647742,1780272665000,-151.0,0.00039023,30]
[423647749,1780272665000,-188.338181,0.00039023,30]
[423647767,1780272665000,-182.845547,0.00039023,30]
[423647756,1780272665000,-151.0,0.00039023,30]
[423647760,1780272665000,-3051.214858,0.00039023,30]
[423647759,1780272665000,-3051.214858,0.00039023,30]
[423647761,1780272665000,-208.33154,0.00039023,30]
[423647763,1780272665000,-3051.214858,0.00039023,30]
[423647764,1780272665000,-208.33154,0.00039023,30]
[423647765,1780272665000,-3051.214858,0.00039023,30]
[423647769,1780272665000,-208.33154,0.00039023,30]
[423647766,1780272665000,-208.33154,0.00039023,30]
[423647743,1780272665000,-151.0,0.00039023,15]
[423647753,1780272665000,-151.0,0.00039023,30]
[423647746,1780272665000,-151.0,0.00039023,30]
[423647727,1780272665000,-151.0,0.00039023,30]
[423647737,1780272665000,-151.0,0.00039023,15]
[423647719,1780272665000,-212.801236,0.00039023,30]
[423647721,1780272665000,-151.0,0.00039023,30]
[423647720,1780272665000,-174.303912,0.00039023,30]
[423647718,1780272665000,-174.303912,0.00039023,30]
[423647722,1780272665000,-151.0,0.00039023,30]
[423647725,1780272665000,-174.303912,0.00039023,30]
[423647733,1780272665000,-151.0,0.00039023,15]
[423647723,1780272665000,-212.801236,0.00039023,30]
[423647726,1780272665000,-212.801236,0.00039023,30]
[423647724,1780272665000,-174.303912,0.00039023,30]
[423647732,1780272665000,-151.0,0.00039023,30]
[423647729,1780272665000,-174.303912,0.00039023,30]
[423647730,1780272665000,-174.303912,0.00039023,30]
[423647728,1780272665000,-151.0,0.00039023,30]
[423647731,1780272665000,-151.0,0.00039023,30]
[423647734,1780272665000,-151.0,0.00039023,15]
[423647745,1780272665000,-151.0,0.00039023,30]
[423647735,1780272665000,-151.0,0.00039023,30]
[423647741,1780272665000,-159.802164,0.00039023,30]
[423647740,1780272665000,-151.0,0.00039023,30]
[423647736,1780272665000,-151.0,0.00039023,30]
[423647744,1780272665000,-151.0,0.00039023,15]
[423647738,1780272665000,-151.0,0.00039023,15]
[423647739,1780272665000,-266.388263,0.00039023,30]
[423647768,1780272665000,-3051.214858,0.00039023,30]
[423647762,1780272665000,-208.33154,0.00039023,30]
[423647771,1780272665000,-208.33154,0.00039023,30]
[423647799,1780272665000,-151.0,0.00039023,30]
[423647801,1780272665000,-151.0,0.00039023,30]
[423647800,1780272665000,-755.902323,0.00039023,30]
[423647804,1780272665000,-328.38579,0.00039023,30]
[423647803,1780272665000,-151.0,0.00039023,30]
[423647805,1780272665000,-328.38579,0.00039023,30]
[423647814,1780272665000,-755.902323,0.00039023,30]
[423647809,1780272665000,-755.902323,0.00039023,30]
[423647808,1780272665000,-755.902323,0.00039023,30]
[423647812,1780272665000,-755.902323,0.00039023,30]
[423647807,1780272665000,-198.808524,0.00039023,30]
[423647806,1780272665000,-151.0,0.00039023,30]
[423647810,1780272665000,-151.0,0.00039023,30]
[423647813,1780272665000,-179.74155,0.00039023,30]
[423647816,1780272665000,-755.902323,0.00039023,30]
[423647818,1780272665000,-755.902323,0.00039023,30]
[423647820,1780272665000,-179.74155,0.00039023,30]
[423647815,1780272665000,-179.74155,0.00039023,30]
[423647819,1780272665000,-179.74155,0.00039023,30]
[423647822,1780272665000,-320.0,0.00039026,56]
[423647821,1780272665000,-179.74155,0.00039023,30]
[423647817,1780272665000,-179.74155,0.00039023,30]
[423647772,1780272665000,-183.03325,0.00039023,30]
[423647802,1780272665000,-755.902323,0.00039023,30]
[423647797,1780272665000,-151.0,0.00039023,30]
[423647811,1780272665000,-151.0,0.00039023,30]
[423647795,1780272665000,-151.0,0.00039023,30]
[423647793,1780272665000,-151.0,0.00039023,30]
[423647770,1780272665000,-3051.214858,0.00039023,30]
[423647774,1780272665000,-1852.621902,0.00039023,7]
[423647775,1780272665000,-1852.621902,0.00039023,7]
[423647773,1780272665000,-195.123168,0.00039023,30]
[423647778,1780272665000,-1852.621902,0.00039023,7]
[423647776,1780272665000,-1852.621902,0.00039023,7]
[423647779,1780272665000,-1852.621902,0.00039023,7]
[423647782,1780272665000,-328.38579,0.00039023,30]
[423647781,1780272665000,-1852.621902,0.00039023,7]
[423647788,1780272665000,-151.0,0.00039023,30]
[423647780,1780272665000,-1852.621902,0.00039023,7]
[423647777,1780272665000,-1852.621902,0.00039023,7]
[423647783,1780272665000,-328.38579,0.00039023,30]
[423647798,1780272665000,-328.38579,0.00039023,30]
[423647794,1780272665000,-151.0,0.00039023,30]
[423647796,1780272665000,-328.38579,0.00039023,30]
[423647792,1780272665000,-328.38579,0.00039023,30]
[423647786,1780272665000,-151.0,0.00039023,30]
[423647791,1780272665000,-151.0,0.00039023,30]
[423647787,1780272665000,-151.0,0.00039023,30]
[423647790,1780272665000,-151.0,0.00039023,30]
[423647789,1780272665000,-328.38579,0.00039023,30]
[423647784,1780272665000,-151.0,0.00039023,30]
[423647785,1780272665000,-151.0,0.00039023,30]
[423647874,1780272666000,-2319.0,0.00039194,11]
[423647875,1780272666000,-386.0,0.00039197,2]
[423647864,1780272666000,-1000.0,0.00039142,90]
[423647857,1780272666000,-386.0,0.00039112,2]
[423647862,1780272666000,-1373.88,0.0003913,7]
[423647861,1780272666000,-386.0,0.00039123,2]
[423647856,1780272666000,-167.04437507,0.00039105,60]
[423647860,1780272666000,-3221.58609734,0.00039116,2]
[423647855,1780272666000,-1471.39945955,0.00039101,2]
[423647858,1780272666000,-1000.0,0.00039112,90]
[423647859,1780272666000,-320.0,0.00039114,57]
[423647854,1780272666000,-2000.0,0.000391,109]
[423647865,1780272666000,-2000.0,0.00039147,57]
[423647881,1780272666000,-262.34,0.000392,45]
[423647863,1780272666000,-320.0,0.0003914,57]
[423647873,1780272666000,-320.0,0.0003919,58]
[423647868,1780272666000,-2000.0,0.00039159,120]
[423647871,1780272666000,-728.53975415,0.00039169,2]
[423647867,1780272666000,-163.0,0.00039153,11]
[423647866,1780272666000,-1590.0,0.00039149,11]
[423647870,1780272666000,-320.0,0.00039166,58]
[423647872,1780272666000,-200.0,0.00039176,20]
[423647876,1780272666000,-7193.59,0.000392,2]
[423647888,1780272666000,-1590.0,0.00039214,11]
[423647877,1780272666000,-244.151697,0.000392,2]
[423647852,1780272666000,-2000.0,0.000391,109]
[423647869,1780272666000,-2000.0,0.00039162,58]
[423647853,1780272666000,-2000.0,0.000391,109]
[423647823,1780272666000,-1425.33417843,0.00039027,2]
[423647849,1780272666000,-151.0,0.000391,30]
[423647826,1780272666000,-2602.37049146,0.00039027,2]
[423647827,1780272666000,-2512.41306561,0.00039027,2]
[423647883,1780272666000,-309.0,0.000392,2]
[423647824,1780272666000,-1448.16551452,0.00039027,2]
[423647825,1780272666000,-2421.23175416,0.00039027,2]
[423647828,1780272666000,-1542.83187018,0.00039027,2]
[423647829,1780272666000,-1441.16521797,0.00039027,2]
[423647832,1780272666000,-825.0,0.00039031,5]
[423647838,1780272666000,-320.0,0.00039086,57]
[423647830,1780272666000,-2133.87703169,0.00039027,2]
[423647831,1780272666000,-1000.0,0.0003903,120]
[423647833,1780272666000,-2000.0,0.00039056,4]
[423647837,1780272666000,-386.0,0.00039077,2]
[423647834,1780272666000,-320.0,0.00039056,56]
[423647836,1780272666000,-386.0,0.00039075,2]
[423647835,1780272666000,-2000.0,0.00039058,56]
[423647839,1780272666000,-151.0,0.00039097,14]
[423647841,1780272666000,-281.698307,0.000391,2]
[423647842,1780272666000,-275.698307,0.000391,2]
[423647845,1780272666000,-3370.31,0.000391,14]
[423647843,1780272666000,-277.343646,0.000391,2]
[423647844,1780272666000,-271.343645,0.000391,2]
[423647846,1780272666000,-86368.93482855,0.000391,2]
[423647848,1780272666000,-151.0,0.000391,30]
[423647847,1780272666000,-151.0,0.000391,30]
[423647850,1780272666000,-151.0,0.000391,30]
[423647840,1780272666000,-26384.81440301,0.000391,2]
[423647851,1780272666000,-2000.0,0.000391,109]
[423647884,1780272666000,-1000.0,0.000392,2]
[423647887,1780272666000,-320.0,0.00039213,58]
[423647878,1780272666000,-232.151696,0.000392,2]
[423647914,1780272666000,-3000.0,0.00039324,30]
[423647923,1780272666000,-2355.22,0.00039328,7]
[423647916,1780272666000,-3000.0,0.00039324,30]
[423647921,1780272666000,-2132.24768779,0.00039324,30]
[423647918,1780272666000,-3000.0,0.00039324,30]
[423647919,1780272666000,-3000.0,0.00039324,30]
[423647917,1780272666000,-3000.0,0.00039324,30]
[423647924,1780272666000,-153.32827126,0.00039332,120]
[423647922,1780272666000,-1373.88,0.00039328,7]
[423647920,1780272666000,-3000.0,0.00039324,30]
[423647926,1780272666000,-150.33094002,0.00039332,120]
[423647927,1780272666000,-386.0,0.00039333,2]
[423647937,1780272666000,-5000.0,0.00039361,2]
[423647925,1780272666000,-165.00137927,0.00039332,120]
[423647930,1780272666000,-178.090746,0.00039349,120]
[423647932,1780272666000,-178.090746,0.00039349,120]
[423647936,1780272666000,-5000.0,0.00039361,2]
[423647933,1780272666000,-178.090746,0.00039349,120]
[423647935,1780272666000,-387.0,0.00039357,2]
[423647931,1780272666000,-178.090746,0.00039349,120]
[423647934,1780272666000,-273.05167002,0.00039353,120]
[423647939,1780272666000,-250.0,0.00039361,2]
[423647940,1780272666000,-500.0,0.00039364,2]
[423647941,1780272666000,-500.0,0.00039364,2]
[423647938,1780272666000,-250.0,0.00039361,2]
[423647943,1780272666000,-500.0,0.00039364,2]
[423647880,1780272666000,-151.0,0.000392,120]
[423647942,1780272666000,-500.0,0.00039364,2]
[423647928,1780272666000,-478.53307865,0.00039343,2]
[423647915,1780272666000,-3000.0,0.00039324,30]
[423647929,1780272666000,-510.84206724,0.00039344,90]
[423647903,1780272666000,-800.0,0.000393,14]
[423647882,1780272666000,-643.0,0.000392,2]
[423647913,1780272666000,-3000.0,0.00039324,30]
[423647879,1780272666000,-229.151696,0.000392,2]
[423647886,1780272666000,-500.0,0.00039205,2]
[423647890,1780272666000,-157.99575143,0.00039232,2]
[423647900,1780272666000,-174.19,0.00039299,2]
[423647901,1780272666000,-221.0,0.000393,120]
[423647889,1780272666000,-1000.0,0.00039228,90]
[423647891,1780272666000,-320.0,0.00039236,58]
[423647894,1780272666000,-734.83951618,0.0003927,2]
[423647898,1780272666000,-320.0,0.00039297,59]
[423647892,1780272666000,-386.0,0.00039245,2]
[423647895,1780272666000,-320.0,0.00039277,59]
[423647893,1780272666000,-320.0,0.00039257,59]
[423647885,1780272666000,-315.0,0.000392,2]
[423647911,1780272666000,-3000.0,0.00039324,30]
[423647897,1780272666000,-218.87046058,0.00039283,120]
[423647908,1780272666000,-800.0,0.000393,14]
[423647909,1780272666000,-800.0,0.000393,14]
[423647910,1780272666000,-453.05809892,0.00039308,2]
[423647906,1780272666000,-800.0,0.000393,14]
[423647912,1780272666000,-3000.0,0.00039324,30]
[423647907,1780272666000,-800.0,0.000393,14]
[423647904,1780272666000,-800.0,0.000393,14]
[423647902,1780272666000,-800.0,0.000393,14]
[423647899,1780272666000,-2000.0,0.00039298,46]
[423647896,1780272666000,-20839.59444734,0.00039282,2]
[423647905,1780272666000,-800.0,0.000393,14]
[423647988,1780272667000,-158.0,0.00039444,120]
[423647983,1780272667000,-477.53,0.00039444,10]
[423647985,1780272667000,-1097.0,0.00039444,120]
[423647987,1780272667000,-157.0,0.00039444,120]
[423647982,1780272667000,-507.0,0.00039444,120]
[423647974,1780272667000,-2000.0,0.00039414,20]
[423647986,1780272667000,-691.0,0.00039444,120]
[423647979,1780272667000,-728.53975415,0.00039443,2]
[423647978,1780272667000,-163.0,0.0003943,120]
[423647981,1780272667000,-387.0,0.00039444,120]
[423647977,1780272667000,-632.0,0.00039418,15]
[423647980,1780272667000,-806.88057405,0.00039444,11]
[423647984,1780272667000,-265.0,0.00039444,120]
[423647989,1780272667000,-1179.0,0.00039444,120]
[423647993,1780272667000,-151.0,0.00039444,20]
[423647991,1780272667000,-151.0,0.00039444,30]
[423648001,1780272667000,-151.0,0.00039444,30]
[423647994,1780272667000,-151.0,0.00039444,20]
[423648003,1780272667000,-151.0,0.00039444,30]
[423647997,1780272667000,-151.0,0.00039444,30]
[423647990,1780272667000,-288.0,0.00039444,120]
[423647998,1780272667000,-151.0,0.00039444,30]
[423648000,1780272667000,-151.0,0.00039444,30]
[423647995,1780272667000,-152.312056,0.00039444,20]
[423647996,1780272667000,-233.979859,0.00039444,30]
[423647999,1780272667000,-151.0,0.00039444,30]
[423648004,1780272667000,-151.0,0.00039444,30]
[423648007,1780272667000,-151.0,0.00039444,30]
[423648002,1780272667000,-151.0,0.00039444,30]
[423647973,1780272667000,-4769.70241981,0.00039407,2]
[423647950,1780272667000,-500.0,0.00039364,2]
[423647975,1780272667000,-150.0,0.00039417,120]
[423648006,1780272667000,-234.047279,0.00039444,30]
[423647949,1780272667000,-500.0,0.00039364,2]
[423647951,1780272667000,-500.0,0.00039364,2]
[423647946,1780272667000,-500.0,0.00039364,2]
[423647945,1780272667000,-500.0,0.00039364,2]
[423647947,1780272667000,-500.0,0.00039364,2]
[423647944,1780272667000,-500.0,0.00039364,2]
[423647948,1780272667000,-500.0,0.00039364,2]
[423647952,1780272667000,-500.0,0.00039364,2]
[423647953,1780272667000,-500.0,0.00039364,2]
[423647958,1780272667000,-500.0,0.00039364,2]
[423647963,1780272667000,-163.0,0.0003937,120]
[423647955,1780272667000,-500.0,0.00039364,2]
[423647959,1780272667000,-500.0,0.00039364,2]
[423647956,1780272667000,-500.0,0.00039364,2]
[423647954,1780272667000,-500.0,0.00039364,2]
[423647964,1780272667000,-19999.999999,0.0003938,30]
[423647957,1780272667000,-500.0,0.00039364,2]
[423647960,1780272667000,-295.66812534,0.00039364,2]
[423647961,1780272667000,-387.0,0.00039367,2]
[423647962,1780272667000,-163.0,0.0003937,120]
[423647966,1780272667000,-386.0,0.00039385,2]
[423647976,1780272667000,-2000.0,0.00039417,15]
[423647965,1780272667000,-150.0,0.00039382,120]
[423647968,1780272667000,-1511.33350604,0.000394,120]
[423647967,1780272667000,-386.0,0.0003939,2]
[423647969,1780272667000,-313.535595,0.000394,2]
[423647971,1780272667000,-200.0,0.000394,10]
[423647972,1780272667000,-194.674,0.000394,40]
[423647970,1780272667000,-245.82,0.000394,19]
[423648005,1780272667000,-151.0,0.00039444,30]
[423647992,1780272667000,-173.417716,0.00039444,30]
[423648015,1780272667000,-1398.231395,0.00039444,30]
[423648036,1780272667000,-944.988119,0.00039444,30]
[423648046,1780272667000,-151.0,0.00039444,30]
[423648056,1780272667000,-205.372533,0.00039444,30]
[423648057,1780272667000,-205.372533,0.00039444,30]
[423648045,1780272667000,-151.0,0.00039444,30]
[423648051,1780272667000,-151.0,0.00039444,30]
[423648054,1780272667000,-205.372533,0.00039444,30]
[423648049,1780272667000,-151.0,0.00039444,30]
[423648050,1780272667000,-151.0,0.00039444,30]
[423648048,1780272667000,-151.0,0.00039444,30]
[423648055,1780272667000,-151.0,0.00039444,30]
[423648053,1780272667000,-151.0,0.00039444,30]
[423648047,1780272667000,-151.0,0.00039444,30]
[423648058,1780272667000,-151.0,0.00039444,30]
[423648059,1780272667000,-301.384214,0.00039444,30]
[423648061,1780272667000,-205.372533,0.00039444,30]
[423648064,1780272667000,-205.372533,0.00039444,30]
[423648065,1780272667000,-205.372533,0.00039444,30]
[423648063,1780272667000,-205.372533,0.00039444,30]
[423648062,1780272667000,-205.372533,0.00039444,30]
[423648066,1780272667000,-205.372533,0.00039444,30]
[423648060,1780272667000,-205.372533,0.00039444,30]
[423648067,1780272667000,-205.372533,0.00039444,30]
[423648068,1780272667000,-205.372524,0.00039444,30]
[423648072,1780272667000,-1247.367113,0.00039444,30]
[423648071,1780272667000,-1247.367113,0.00039444,30]
[423648069,1780272667000,-1247.367113,0.00039444,30]
[423648070,1780272667000,-1247.367113,0.00039444,30]
[423648016,1780272667000,-1398.231395,0.00039444,30]
[423648035,1780272667000,-944.988119,0.00039444,30]
[423648037,1780272667000,-944.988119,0.00039444,30]
[423648052,1780272667000,-151.0,0.00039444,30]
[423648032,1780272667000,-944.988119,0.00039444,30]
[423648008,1780272667000,-151.0,0.00039444,30]
[423648034,1780272667000,-944.988119,0.00039444,30]
[423648014,1780272667000,-1398.231395,0.00039444,30]
[423648010,1780272667000,-225.044492,0.00039444,30]
[423648011,1780272667000,-1398.231395,0.00039444,30]
[423648009,1780272667000,-151.0,0.00039444,30]
[423648012,1780272667000,-1398.231395,0.00039444,30]
[423648013,1780272667000,-1398.231395,0.00039444,30]
[423648018,1780272667000,-1398.231395,0.00039444,30]
[423648028,1780272667000,-944.988119,0.00039444,30]
[423648017,1780272667000,-1398.231395,0.00039444,30]
[423648030,1780272667000,-944.988119,0.00039444,30]
[423648019,1780272667000,-1398.231395,0.00039444,30]
[423648024,1780272667000,-151.0,0.00039444,30]
[423648022,1780272667000,-1398.231401,0.00039444,30]
[423648029,1780272667000,-944.988119,0.00039444,30]
[423648044,1780272667000,-151.0,0.00039444,30]
[423648042,1780272667000,-257.569886,0.00039444,30]
[423648020,1780272667000,-1398.231395,0.00039444,30]
[423648039,1780272667000,-151.0,0.00039444,30]
[423648043,1780272667000,-151.0,0.00039444,30]
[423648040,1780272667000,-151.0,0.00039444,30]
[423648038,1780272667000,-944.988124,0.00039444,30]
[423648033,1780272667000,-944.988119,0.00039444,30]
[423648041,1780272667000,-151.0,0.00039444,30]
[423648023,1780272667000,-151.0,0.00039444,30]
[423648025,1780272667000,-151.0,0.00039444,30]
[423648027,1780272667000,-944.988119,0.00039444,30]
[423648021,1780272667000,-1398.231395,0.00039444,30]
[423648026,1780272667000,-293.065152,0.00039444,30]
[423648031,1780272667000,-944.988119,0.00039444,30]
[423648117,1780272668000,-150.0,0.00039492,2]
[423648111,1780272668000,-386.0,0.00039471,2]
[423648113,1780272668000,-2000.0,0.00039489,24]
[423648114,1780272668000,-151.0,0.0003949,14]
[423648115,1780272668000,-389.0,0.00039491,2]
[423648116,1780272668000,-232.85955464,0.00039492,120]
[423648106,1780272668000,-400.0,0.0003947,2]
[423648112,1780272668000,-264.17,0.00039486,30]
[423648109,1780272668000,-400.0,0.0003947,2]
[423648121,1780272668000,-2000.0,0.00039492,6]
[423648120,1780272668000,-2000.0,0.00039492,3]
[423648110,1780272668000,-375.05,0.0003947,120]
[423648119,1780272668000,-2000.0,0.00039492,2]
[423648118,1780272668000,-2000.0,0.00039492,120]
[423648129,1780272668000,-200.0,0.00039493,2]
[423648137,1780272668000,-1546.0,0.00039493,3]
[423648124,1780272668000,-2000.0,0.00039492,11]
[423648123,1780272668000,-2000.0,0.00039492,10]
[423648130,1780272668000,-1546.0,0.00039493,3]
[423648125,1780272668000,-2000.0,0.00039492,12]
[423648133,1780272668000,-1546.0,0.00039493,3]
[423648134,1780272668000,-1546.0,0.00039493,3]
[423648126,1780272668000,-2000.0,0.00039492,14]
[423648128,1780272668000,-2000.0,0.00039492,60]
[423648132,1780272668000,-1546.0,0.00039493,3]
[423648127,1780272668000,-2000.0,0.00039492,30]
[423648122,1780272668000,-2000.0,0.00039492,7]
[423648131,1780272668000,-1546.0,0.00039493,3]
[423648148,1780272668000,-1546.0,0.00039493,3]
[423648108,1780272668000,-400.0,0.0003947,2]
[423648135,1780272668000,-1546.0,0.00039493,3]
[423648105,1780272668000,-152.0,0.0003946,7]
[423648079,1780272668000,-1247.367113,0.00039444,30]
[423648104,1780272668000,-387.0,0.00039455,2]
[423648077,1780272668000,-1247.367113,0.00039444,30]
[423648138,1780272668000,-1546.0,0.00039493,3]
[423648078,1780272668000,-1247.367113,0.00039444,30]
[423648073,1780272668000,-1247.367113,0.00039444,30]
[423648080,1780272668000,-1247.36711,0.00039444,30]
[423648074,1780272668000,-1247.367113,0.00039444,30]
[423648075,1780272668000,-1247.367113,0.00039444,30]
[423648076,1780272668000,-1247.367113,0.00039444,30]
[423648091,1780272668000,-300.0,0.00039452,120]
[423648090,1780272668000,-300.0,0.00039452,120]
[423648094,1780272668000,-300.0,0.00039452,120]
[423648092,1780272668000,-300.0,0.00039452,120]
[423648093,1780272668000,-300.0,0.00039452,120]
[423648083,1780272668000,-300.0,0.00039452,120]
[423648082,1780272668000,-152.0,0.00039448,7]
[423648081,1780272668000,-386.0,0.00039448,2]
[423648089,1780272668000,-300.0,0.00039452,120]
[423648103,1780272668000,-385.693742,0.00039452,120]
[423648100,1780272668000,-300.0,0.00039452,120]
[423648107,1780272668000,-300.22473343,0.0003947,2]
[423648102,1780272668000,-300.0,0.00039452,120]
[423648095,1780272668000,-300.0,0.00039452,120]
[423648101,1780272668000,-300.0,0.00039452,120]
[423648099,1780272668000,-300.0,0.00039452,120]
[423648097,1780272668000,-300.0,0.00039452,120]
[423648096,1780272668000,-300.0,0.00039452,120]
[423648087,1780272668000,-300.0,0.00039452,120]
[423648084,1780272668000,-300.0,0.00039452,120]
[423648086,1780272668000,-300.0,0.00039452,120]
[423648088,1780272668000,-300.0,0.00039452,120]
[423648085,1780272668000,-300.0,0.00039452,120]
[423648098,1780272668000,-300.0,0.00039452,120]
[423648136,1780272668000,-1546.0,0.00039493,3]
[423648141,1780272668000,-1546.0,0.00039493,3]
[423648147,1780272668000,-1546.0,0.00039493,3]
[423648174,1780272668000,-151.0,0.00039493,3]
[423648179,1780272668000,-151.0,0.00039493,3]
[423648188,1780272668000,-153.0,0.00039493,3]
[423648185,1780272668000,-153.0,0.00039493,3]
[423648180,1780272668000,-162.57738279,0.00039493,3]
[423648182,1780272668000,-153.0,0.00039493,3]
[423648181,1780272668000,-153.0,0.00039493,3]
[423648183,1780272668000,-153.0,0.00039493,3]
[423648186,1780272668000,-153.0,0.00039493,3]
[423648184,1780272668000,-153.0,0.00039493,3]
[423648187,1780272668000,-153.0,0.00039493,3]
[423648189,1780272668000,-153.0,0.00039493,3]
[423648190,1780272668000,-153.0,0.00039493,3]
[423648191,1780272668000,-153.0,0.00039493,3]
[423648192,1780272668000,-154.0,0.00039493,3]
[423648194,1780272668000,-500.0,0.00039493,30]
[423648205,1780272668000,-815.0,0.000395,30]
[423648207,1780272668000,-815.0,0.000395,30]
[423648206,1780272668000,-815.0,0.000395,30]
[423648208,1780272668000,-815.0,0.000395,30]
[423648203,1780272668000,-151.0,0.00039497,14]
[423648202,1780272668000,-151.0,0.00039497,14]
[423648149,1780272668000,-1546.0,0.00039493,3]
[423648170,1780272668000,-151.0,0.00039493,3]
[423648201,1780272668000,-200.0,0.00039493,2]
[423648195,1780272668000,-157.00557815,0.00039493,30]
[423648199,1780272668000,-2000.0,0.00039493,114]
[423648193,1780272668000,-200.0,0.00039493,2]
[423648196,1780272668000,-200.0,0.00039493,2]
[423648204,1780272668000,-386.0,0.00039498,2]
[423648197,1780272668000,-542.91364843,0.00039493,2]
[423648200,1780272668000,-500.0,0.00039493,30]
[423648172,1780272668000,-151.0,0.00039493,3]
[423648198,1780272668000,-2000.0,0.00039493,114]
[423648173,1780272668000,-151.0,0.00039493,3]
[423648167,1780272668000,-151.0,0.00039493,3]
[423648139,1780272668000,-1546.0,0.00039493,3]
[423648140,1780272668000,-1546.0,0.00039493,3]
[423648145,1780272668000,-1546.0,0.00039493,3]
[423648143,1780272668000,-1546.0,0.00039493,3]
[423648144,1780272668000,-1546.0,0.00039493,3]
[423648142,1780272668000,-1546.0,0.00039493,3]
[423648150,1780272668000,-1546.0,0.00039493,3]
[423648154,1780272668000,-1546.0,0.00039493,3]
[423648152,1780272668000,-1546.0,0.00039493,3]
[423648151,1780272668000,-1546.0,0.00039493,3]
[423648156,1780272668000,-1546.0,0.00039493,3]
[423648155,1780272668000,-1546.0,0.00039493,3]